[Event "ONJK U25"]
[Site "Enschede, Netherlands"]
[Date "2022.08.09"]
[Round "2.1"]
[White "Nijdam, Brian"]
[Black "Baselmans, Luuk"]
[Result "0-1"]
[TimeControl "90min + 30sec/move"]
[WhiteElo "1749"]
[BlackElo "2256"]

1. c4 {[%clk 01:28:30]} {[%emt 00:02:29]} e5 {[%clk 01:30:18]} {[%emt
00:00:43]} 2. Nc3 {[%clk 01:28:54]} {[%emt 00:00:06]} Nf6 {[%clk 01:30:12]}
{[%emt 00:00:36]} 3. g3 {[%clk 01:29:16]} {[%emt 00:00:08]} c6 {[%clk
01:29:49]} {[%emt 00:00:53]} 4. Nf3 {[%clk 01:29:22]} {[%emt 00:00:23]} e4
{[%clk 01:29:49]} {[%emt 00:00:31]} 5. Nd4 {[%clk 01:29:47]} {[%emt 00:00:05]}
Qb6 {[%clk 01:29:20]} {[%emt 00:00:59]} 6. Nb3 {[%clk 01:30:12]} {[%emt
00:00:06]} a5 {[%clk 01:29:19]} {[%emt 00:00:31]} 7. Na4 {[%clk 01:30:37]}
{[%emt 00:00:05]} Qd8 {[%clk 01:27:12]} {[%emt 00:02:36]} 8. c5 {[%clk
01:28:16]} {[%emt 00:02:51]} b5 {[%clk 01:19:21]} {[%emt 00:08:20]} 9. cxb6
{[%clk 01:28:07]} {[%emt 00:00:39]} d5 {[%clk 01:19:18]} {[%emt 00:00:33]} 10.
Bg2 {[%clk 01:26:24]} {[%emt 00:02:13]} Bd6 {[%clk 01:14:12]} {[%emt 00:05:36]}
11. d3 {[%clk 01:25:54]} {[%emt 00:00:59]} exd3 {[%clk 01:13:30]} {[%emt
00:01:13]} 12. Qxd3 {[%clk 01:24:13]} {[%emt 00:02:12]} O-O {[%clk 01:12:42]}
{[%emt 00:01:17]} 13. Bg5 {[%clk 01:18:28]} {[%emt 00:06:14]} Bb4+ {[%clk
01:08:01]} {[%emt 00:05:12]} 14. Kf1 {[%clk 01:12:34]} {[%emt 00:06:25]} Re8
{[%clk 01:03:04]} {[%emt 00:05:26]} 15. Bf3 {[%clk 01:12:33]} {[%emt 00:00:31]}
Nbd7 {[%clk 00:51:46]} {[%emt 00:11:48]} 16. Qd4 {[%clk 01:07:01]} {[%emt
00:06:01]} Ne5 {[%clk 00:50:53]} {[%emt 00:01:24]} 17. Kg2 {[%clk 01:04:50]}
{[%emt 00:02:40]} Rb8 {[%clk 00:37:02]} {[%emt 00:14:23]} 18. Rac1 {[%clk
01:00:48]} {[%emt 00:04:31]} Ba6 {[%clk 00:36:27]} {[%emt 00:01:05]} 19. Nbc5
{[%clk 00:58:02]} {[%emt 00:03:16]} Bb5 {[%clk 00:36:06]} {[%emt 00:00:51]} 20.
a3 {[%clk 00:50:15]} {[%emt 00:08:17]} Bxc5 {[%clk 00:36:13]} {[%emt 00:00:24]}
21. Rxc5 {[%clk 00:49:04]} {[%emt 00:01:40]} Bxa4 {[%clk 00:35:48]} {[%emt
00:00:56]} 22. Qxa4 {[%clk 00:49:26]} {[%emt 00:00:08]} Qxb6 {[%clk 00:36:10]}
{[%emt 00:00:08]} 23. Qxa5 {[%clk 00:45:34]} {[%emt 00:04:21]} Qxb2 {[%clk
00:34:24]} {[%emt 00:02:17]} 24. Qc3 {[%clk 00:45:01]} {[%emt 00:01:03]} Nfd7
{[%clk 00:30:47]} {[%emt 00:04:07]} 25. Qxb2 {[%clk 00:44:46]} {[%emt
00:00:45]} Rxb2 {[%clk 00:31:11]} {[%emt 00:00:06]} 26. Rcc1 {[%clk 00:42:41]}
{[%emt 00:02:34]} Nxf3 {[%clk 00:30:21]} {[%emt 00:01:20]} 27. exf3 {[%clk
00:40:24]} {[%emt 00:02:47]} f6 {[%clk 00:27:58]} {[%emt 00:02:54]} 28. Bf4
{[%clk 00:40:35]} {[%emt 00:00:17]} c5 {[%clk 00:28:11]} {[%emt 00:00:19]} 29.
Rhe1 {[%clk 00:40:21]} {[%emt 00:00:43]} Ree2 {[%clk 00:24:01]} {[%emt
00:04:40]} 30. Rxe2 {[%clk 00:40:01]} {[%emt 00:00:50]} Rxe2 {[%clk 00:24:25]}
{[%emt 00:00:06]} 31. Bd6 {[%clk 00:39:30]} {[%emt 00:01:01]} c4 {[%clk
00:24:35]} {[%emt 00:00:20]} 32. Kf1 {[%clk 00:39:09]} {[%emt 00:00:51]} Re6
{[%clk 00:23:00]} {[%emt 00:02:05]} 33. Bb4 {[%clk 00:39:21]} {[%emt 00:00:17]}
Nb6 {[%clk 00:23:24]} {[%emt 00:00:07]} 34. Re1 {[%clk 00:38:57]} {[%emt
00:00:54]} Kf7 {[%clk 00:22:26]} {[%emt 00:01:27]} 35. f4 {[%clk 00:35:51]}
{[%emt 00:03:36]} g6 {[%clk 00:16:22]} {[%emt 00:06:34]} 36. f3 {[%clk
00:34:11]} {[%emt 00:02:09]} Rxe1+ {[%clk 00:14:18]} {[%emt 00:02:36]} 37. Kxe1
{[%clk 00:34:12]} {[%emt 00:00:28]} Na4 {[%clk 00:14:34]} {[%emt 00:00:14]} 38.
Kd2 {[%clk 00:34:08]} {[%emt 00:00:33]} d4 {[%clk 00:14:58]} {[%emt 00:00:06]}
39. Bd6 {[%clk 00:32:06]} {[%emt 00:02:32]} Ke6 {[%clk 00:15:21]} {[%emt
00:00:08]} 40. Bb4 {[%clk 00:32:03]} {[%emt 00:00:32]} Kd5 {[%clk 00:15:18]}
{[%emt 00:00:34]} 41. Be7 {[%clk 00:31:48]} {[%emt 00:00:44]} c3+ {[%clk
00:14:27]} {[%emt 00:01:21]} 42. Kc2 {[%clk 00:31:18]} {[%emt 00:01:00]} Kc4
{[%clk 00:14:52]} {[%emt 00:00:05]} 43. Bxf6 {[%clk 00:30:42]} {[%emt
00:01:07]} d3+ {[%clk 00:15:15]} {[%emt 00:00:06]} 0-1

[Event "ONJK U25"]
[Site "Enschede, Netherlands"]
[Date "2022.08.09"]
[Round "2.2"]
[White "Boudry, William"]
[Black "Meulenkolk, Jan-Geert"]
[Result "1-0"]
[TimeControl "90min + 30sec/move"]
[WhiteElo "2115"]
[BlackElo "1681"]

1. Nc3 {[%clk 01:30:47]} {[%emt 00:00:13]} e5 {[%clk 01:30:20]} {[%emt
00:00:41]} 2. e4 {[%clk 01:31:13]} {[%emt 00:00:04]} Nc6 {[%clk 01:29:32]}
{[%emt 00:01:17]} 3. Bc4 {[%clk 01:31:32]} {[%emt 00:00:11]} Nf6 {[%clk
01:28:56]} {[%emt 00:01:07]} 4. d3 {[%clk 01:31:54]} {[%emt 00:00:07]} Bb4
{[%clk 01:27:55]} {[%emt 00:01:32]} 5. Nge2 {[%clk 01:31:36]} {[%emt 00:00:48]}
d5 {[%clk 01:25:17]} {[%emt 00:03:08]} 6. exd5 {[%clk 01:31:57]} {[%emt
00:00:09]} Nxd5 {[%clk 01:25:16]} {[%emt 00:00:30]} 7. Bxd5 {[%clk 01:32:21]}
{[%emt 00:00:06]} Qxd5 {[%clk 01:25:05]} {[%emt 00:00:41]} 8. O-O {[%clk
01:32:44]} {[%emt 00:00:07]} Qd8 {[%clk 01:22:15]} {[%emt 00:03:19]} 9. f4
{[%clk 01:31:34]} {[%emt 00:01:41]} O-O {[%clk 01:16:09]} {[%emt 00:06:36]} 10.
fxe5 {[%clk 01:26:42]} {[%emt 00:05:22]} Nxe5 {[%clk 01:11:39]} {[%emt
00:04:59]} 11. d4 {[%clk 01:25:03]} {[%emt 00:02:08]} Ng6 {[%clk 01:08:58]}
{[%emt 00:03:11]} 12. Ne4 {[%clk 01:23:16]} {[%emt 00:02:18]} Bg4 {[%clk
01:05:16]} {[%emt 00:04:11]} 13. c3 {[%clk 01:19:43]} {[%emt 00:04:03]} Re8
{[%clk 00:57:52]} {[%emt 00:07:54]} 14. Qb3 {[%clk 00:57:19]} {[%emt 00:22:54]}
Bxe2 {[%clk 00:40:51]} {[%emt 00:17:30]} 15. Rxf7 {[%clk 00:56:23]} {[%emt
00:01:27]} Kh8 {[%clk 00:39:18]} {[%emt 00:02:03]} 16. Ng5 {[%clk 00:55:46]}
{[%emt 00:01:07]} Bf8 {[%clk 00:14:12]} {[%emt 00:25:35]} 17. Rxg7 {[%clk
00:55:27]} {[%emt 00:00:49]} Bxg7 {[%clk 00:10:41]} {[%emt 00:04:01]} 18. Nf7+
{[%clk 00:55:52]} {[%emt 00:00:05]} Kg8 {[%clk 00:10:54]} {[%emt 00:00:17]} 19.
Nh6+ {[%clk 00:56:12]} {[%emt 00:00:11]} 1-0

[Event "ONJK U25"]
[Site "Enschede, Netherlands"]
[Date "2022.08.09"]
[Round "2.3"]
[White "Merkon, Oseb"]
[Black "Yee, Fong You"]
[Result "1-0"]
[TimeControl "90min + 30sec/move"]
[WhiteElo "1954"]
[BlackElo "981"]

1. d4 {[%clk 01:30:58]} {[%emt 00:00:02]} f5 {[%clk 01:30:21]} {[%emt
00:00:39]} 2. c4 {[%clk 01:31:17]} {[%emt 00:00:10]} Nf6 {[%clk 01:30:15]}
{[%emt 00:00:37]} 3. Nc3 {[%clk 01:31:42]} {[%emt 00:00:05]} g6 {[%clk
01:30:18]} {[%emt 00:00:27]} 4. h4 {[%clk 01:31:34]} {[%emt 00:00:38]} c6
{[%clk 01:29:38]} {[%emt 00:01:10]} 5. h5 {[%clk 01:31:17]} {[%emt 00:00:47]}
Bg7 {[%clk 01:28:37]} {[%emt 00:01:31]} 6. e4 {[%clk 01:27:22]} {[%emt
00:04:25]} fxe4 {[%clk 01:27:15]} {[%emt 00:01:51]} 7. g4 {[%clk 01:24:39]}
{[%emt 00:03:14]} d6 {[%clk 01:22:56]} {[%emt 00:04:49]} 8. h6 {[%clk
01:21:09]} {[%emt 00:04:00]} Bf8 {[%clk 01:21:00]} {[%emt 00:02:25]} 9. g5
{[%clk 01:21:25]} {[%emt 00:00:15]} Ng8 {[%clk 01:19:00]} {[%emt 00:02:30]} 10.
d5 {[%clk 01:20:58]} {[%emt 00:00:56]} Bf5 {[%clk 01:17:18]} {[%emt 00:02:12]}
11. Qd4 {[%clk 01:21:01]} {[%emt 00:00:28]} Nf6 12. gxf6 {[%clk 01:21:15]} exf6
{[%clk 01:15:13]} {[%emt 00:00:03]} 13. Nxe4 {[%clk 01:21:08]} {[%emt
00:00:37]} Qe7 {[%clk 01:14:40]} {[%emt 00:01:03]} 14. Bd3 {[%clk 01:21:08]}
{[%emt 00:00:30]} Nd7 {[%emt 00:01:30]} 15. Bf4 {[%clk 01:14:33]} {[%emt
00:06:59]} Nc5 {[%clk 01:10:17]} {[%emt 00:03:59]} 16. f3 {[%clk 01:14:28]}
{[%emt 00:00:35]} O-O-O {[%clk 01:08:50]} {[%emt 00:01:56]} 17. O-O-O {[%clk
01:11:34]} {[%emt 00:03:25]} g5 {[%clk 01:04:58]} {[%emt 00:04:22]} 18. Nxd6+
{[%clk 01:11:18]} {[%emt 00:00:46]} Rxd6 {[%clk 01:05:16]} {[%emt 00:00:11]} 19.
Bxf5+ {[%clk 01:11:45]} {[%emt 00:00:04]} Rd7 {[%clk 01:03:44]} {[%emt
00:02:01]} 20. d6 {[%clk 01:04:28]} {[%emt 00:07:48]} Qd8 {[%clk 01:01:30]}
{[%emt 00:02:43]} 21. Qxc5 {[%clk 01:04:19]} {[%emt 00:00:38]} Qb6 {[%clk
01:01:02]} {[%emt 00:01:00]} 22. Qxb6 {[%clk 01:04:24]} {[%emt 00:00:25]} axb6
{[%clk 01:01:23]} {[%emt 00:00:07]} 23. Bg3 {[%clk 01:03:18]} {[%emt 00:01:38]}
Kd8 {[%clk 01:00:53]} {[%emt 00:01:00]} 24. Ne2 {[%clk 01:01:42]} {[%emt
00:03:48]} 1-0

[Event "ONJK U25"]
[Site "Enschede, Netherlands"]
[Date "2022.08.09"]
[Round "2.4"]
[White "Said, Omar"]
[Black "Kruimer, Matthias"]
[Result "1-0"]
[TimeControl "90min + 30sec/move"]
[WhiteElo "1620"]
[BlackElo "1766"]

1. e4 {[%clk 01:30:57]} {[%emt 00:00:02]} e5 {[%clk 01:30:53]} {[%emt
00:00:07]} 2. Nf3 {[%clk 01:31:01]} {[%emt 00:00:27]} Nc6 {[%clk 01:31:08]}
{[%emt 00:00:15]} 3. Bc4 {[%clk 01:31:27]} {[%emt 00:00:04]} Nf6 {[%clk
01:31:25]} {[%emt 00:00:13]} 4. Ng5 {[%clk 01:31:51]} {[%emt 00:00:06]} d5
{[%clk 01:31:46]} {[%emt 00:00:09]} 5. exd5 {[%clk 01:32:15]} {[%emt 00:00:06]}
Na5 {[%clk 01:32:11]} {[%emt 00:00:05]} 6. Bb5+ {[%clk 01:32:36]} {[%emt
00:00:09]} c6 {[%clk 01:32:35]} {[%emt 00:00:06]} 7. dxc6 {[%clk 01:32:58]}
{[%emt 00:00:08]} bxc6 {[%clk 01:32:59]} {[%emt 00:00:06]} 8. Qf3 {[%clk
01:33:14]} {[%emt 00:00:14]} Be7 {[%clk 01:33:10]} {[%emt 00:00:18]} 9. Bd3
{[%clk 01:33:36]} {[%emt 00:00:09]} O-O {[%clk 01:32:31]} {[%emt 00:01:09]} 10.
Nc3 {[%clk 01:34:01]} {[%emt 00:00:05]} h6 {[%clk 01:32:47]} {[%emt 00:00:13]}
11. Nge4 {[%clk 01:34:25]} {[%emt 00:00:07]} Nd5 {[%clk 01:32:49]} {[%emt
00:00:28]} 12. Ng3 {[%clk 01:34:31]} {[%emt 00:00:24]} g6 {[%clk 01:33:03]}
{[%emt 00:00:16]} 13. b3 {[%clk 01:16:00]} {[%emt 00:19:02]} f5 {[%clk
01:25:49]} {[%emt 00:07:43]} 14. Bb2 {[%clk 01:07:07]} {[%emt 00:09:23]} Bf6
{[%clk 00:59:21]} {[%emt 00:26:57]} 15. Nce4 {[%clk 00:45:45]} {[%emt
00:21:52]} fxe4 {[%clk 00:53:32]} {[%emt 00:06:20]} 16. Qxe4 {[%clk 00:45:59]}
{[%emt 00:00:17]} Nf4 {[%clk 00:49:10]} {[%emt 00:04:51]} 17. O-O {[%clk
00:44:34]} {[%emt 00:01:55]} Qd5 {[%clk 00:41:50]} {[%emt 00:07:51]} 18. Nh5
{[%clk 00:28:29]} {[%emt 00:16:34]} Qxe4 {[%clk 00:31:55]} {[%emt 00:10:25]} 19.
Nxf6+ {[%clk 00:28:48]} {[%emt 00:00:11]} Rxf6 {[%clk 00:32:20]} {[%emt
00:00:04]} 20. Bxe4 {[%clk 00:29:11]} {[%emt 00:00:07]} Re6 {[%clk 00:26:23]}
{[%emt 00:06:27]} 21. Rfe1 {[%clk 00:28:04]} {[%emt 00:01:37]} Bb7 {[%clk
00:22:42]} {[%emt 00:04:11]} 22. Bc3 {[%clk 00:25:54]} {[%emt 00:02:40]} Nxb3
{[%clk 00:10:22]} {[%emt 00:12:50]} 23. axb3 {[%clk 00:25:33]} {[%emt
00:00:52]} a6 {[%clk 00:10:16]} {[%emt 00:00:36]} 24. g3 {[%clk 00:17:30]}
{[%emt 00:08:32]} Nh3+ {[%clk 00:09:41]} {[%emt 00:01:05]} 25. Kg2 {[%clk
00:17:29]} {[%emt 00:00:32]} Ng5 {[%clk 00:09:53]} {[%emt 00:00:18]} 26. Bd3
{[%clk 00:15:22]} {[%emt 00:02:37]} c5+ {[%clk 00:08:26]} {[%emt 00:01:57]} 27.
Kf1 {[%clk 00:15:40]} {[%emt 00:00:12]} Nf3 {[%clk 00:03:42]} {[%emt 00:05:14]}
28. Bc4 {[%clk 00:13:40]} {[%emt 00:02:30]} Kf7 {[%clk 00:02:54]} {[%emt
00:01:17]} 29. Re3 {[%clk 00:08:29]} {[%emt 00:05:42]} Nxh2+ {[%clk 00:02:25]}
{[%emt 00:00:59]} 30. Ke2 {[%clk 00:08:37]} {[%emt 00:00:22]} Ng4 {[%clk
00:02:38]} {[%emt 00:00:17]} 31. Rd3 {[%clk 00:08:30]} {[%emt 00:00:37]} Ke7
{[%clk 00:01:07]} {[%emt 00:02:02]} 32. Bxe6 {[%clk 00:08:52]} {[%emt
00:00:08]} Kxe6 {[%clk 00:01:35]} {[%emt 00:00:02]} 33. f3 {[%clk 00:08:26]}
{[%emt 00:00:56]} Nf6 {[%clk 00:00:58]} {[%emt 00:01:07]} 34. Re3 {[%clk
00:08:34]} {[%emt 00:00:23]} Nd7 {[%clk 00:00:59]} {[%emt 00:00:29]} 35. f4
{[%clk 00:08:33]} {[%emt 00:00:31]} e4 {[%clk 00:01:17]} {[%emt 00:00:12]} 36.
d3 {[%clk 00:08:49]} {[%emt 00:00:13]} Kf5 {[%clk 00:01:25]} {[%emt 00:00:21]}
37. dxe4+ {[%clk 00:08:37]} {[%emt 00:00:43]} Bxe4 {[%clk 00:01:29]} {[%emt
00:00:26]} 38. g4+ {[%clk 00:08:23]} {[%emt 00:00:43]} Kxf4 {[%clk 00:00:47]}
{[%emt 00:01:11]} 39. Rf1+ {[%clk 00:08:44]} {[%emt 00:00:09]} 1-0

[Event "ONJK U25"]
[Site "Enschede, Netherlands"]
[Date "2022.08.09"]
[Round "2.5"]
[White "Heskes, Johan"]
[Black "Gesthuizen, Ward"]
[Result "1-0"]
[TimeControl "90min + 30sec/move"]
[WhiteElo "1566"]
[BlackElo "1600"]

1. d4 {[%clk 01:30:58]} {[%emt 00:00:02]} d5 {[%clk 01:30:51]} {[%emt
00:00:08]} 2. c4 {[%clk 01:31:23]} {[%emt 00:00:05]} e6 {[%clk 01:31:13]}
{[%emt 00:00:08]} 3. Nc3 {[%clk 01:31:47]} {[%emt 00:00:06]} Nf6 {[%clk
01:31:29]} {[%emt 00:00:15]} 4. Bf4 {[%clk 01:32:10]} {[%emt 00:00:07]} Nbd7
{[%clk 01:28:26]} {[%emt 00:03:33]} 5. c5 {[%clk 01:30:56]} {[%emt 00:01:44]}
c6 {[%clk 01:21:43]} {[%emt 00:07:14]} 6. h3 {[%clk 01:29:34]} {[%emt
00:01:51]} b6 {[%clk 01:18:58]} {[%emt 00:03:15]} 7. b4 {[%clk 01:29:56]}
{[%emt 00:00:08]} bxc5 {[%clk 01:18:05]} {[%emt 00:01:23]} 8. bxc5 {[%clk
01:30:23]} {[%emt 00:00:02]} Qa5 {[%clk 01:14:29]} {[%emt 00:04:06]} 9. Qd2
{[%clk 01:29:24]} {[%emt 00:01:28]} Ba6 {[%clk 01:13:02]} {[%emt 00:01:58]} 10.
e3 {[%clk 01:29:30]} {[%emt 00:00:23]} Bxf1 {[%clk 01:12:27]} {[%emt 00:01:05]}
11. Kxf1 {[%clk 01:29:38]} {[%emt 00:00:21]} Nh5 {[%clk 01:05:54]} {[%emt
00:07:04]} 12. Bh2 {[%clk 01:29:48]} {[%emt 00:00:20]} g6 {[%clk 01:05:50]}
{[%emt 00:00:34]} 13. Nf3 {[%clk 01:21:14]} {[%emt 00:09:04]} f6 {[%clk
00:58:41]} {[%emt 00:07:40]} 14. Nxd5 {[%clk 01:20:13]} {[%emt 00:01:30]} Qa6+
{[%clk 00:56:56]} {[%emt 00:02:15]} 15. Kg1 {[%clk 01:20:28]} {[%emt 00:00:15]}
cxd5 {[%clk 00:55:29]} {[%emt 00:01:57]} 16. g4 {[%clk 01:20:25]} {[%emt
00:00:34]} Ng7 {[%clk 00:55:00]} {[%emt 00:00:59]} 17. Rb1 {[%clk 01:20:34]}
{[%emt 00:00:21]} Be7 {[%clk 00:48:45]} {[%emt 00:06:45]} 18. Rb3 {[%clk
01:20:40]} {[%emt 00:00:24]} O-O {[%clk 00:47:11]} {[%emt 00:02:03]} 19. Kg2
{[%clk 01:20:41]} {[%emt 00:00:30]} e5 {[%clk 00:40:06]} {[%emt 00:07:34]} 20.
dxe5 {[%clk 01:19:38]} {[%emt 00:01:33]} Nxc5 {[%clk 00:39:27]} {[%emt
00:01:10]} 21. exf6 {[%clk 01:18:56]} {[%emt 00:01:11]} Qxf6 {[%clk 00:35:06]}
{[%emt 00:04:51]} 22. Qxd5+ {[%clk 01:19:07]} {[%emt 00:00:20]} Kh8 {[%clk
00:31:50]} {[%emt 00:03:45]} 23. Be5 {[%clk 01:16:21]} {[%emt 00:03:16]} Qf7
{[%clk 00:30:32]} {[%emt 00:01:48]} 24. Qxf7 {[%emt 00:01:39]} Rxf7 {[%clk
00:30:54]} 25. Rc3 {[%clk 01:15:19]} {[%emt 00:00:30]} Raf8 {[%clk 00:28:27]}
{[%emt 00:02:58]} 26. e4 {[%clk 01:10:42]} {[%emt 00:05:08]} Nxe4 {[%clk
00:27:21]} {[%emt 00:01:35]} 27. Re3 {[%clk 01:11:04]} {[%emt 00:00:08]} Ng5
{[%clk 00:26:49]} {[%emt 00:01:01]} 28. Nd4 {[%clk 01:09:58]} {[%emt 00:01:37]}
Rxf2+ {[%clk 00:25:29]} {[%emt 00:01:50]} 29. Kg3 {[%clk 01:10:16]} {[%emt
00:00:13]} Bc5 {[%clk 00:20:42]} {[%emt 00:05:17]} 30. Rc1 {[%clk 01:06:41]}
{[%emt 00:04:04]} Bb6 {[%clk 00:18:49]} {[%emt 00:02:22]} 31. h4 {[%clk
01:03:55]} {[%emt 00:03:17]} Bxd4 {[%clk 00:15:10]} {[%emt 00:04:10]} 32. Bxd4
{[%clk 01:04:10]} {[%emt 00:00:15]} N5e6 {[%clk 00:13:48]} {[%emt 00:01:52]} 33.
Bc3 {[%clk 01:02:05]} {[%emt 00:02:34]} Kg8 {[%clk 00:12:58]} {[%emt 00:01:20]}
34. Rb1 {[%clk 01:01:15]} {[%emt 00:01:21]} Nc5 {[%clk 00:12:00]} {[%emt
00:01:28]} 35. Rb4 {[%clk 01:00:30]} {[%emt 00:01:15]} h5 {[%clk 00:11:01]}
{[%emt 00:01:29]} 36. g5 {[%clk 00:58:07]} {[%emt 00:02:53]} Rxa2 {[%clk
00:10:15]} {[%emt 00:01:16]} 37. Bxg7 {[%clk 00:57:28]} {[%emt 00:01:09]} Kxg7
{[%clk 00:10:35]} {[%emt 00:00:10]} 38. Rc4 {[%clk 00:57:24]} {[%emt 00:00:35]}
Ra5 {[%clk 00:09:37]} {[%emt 00:01:27]} 39. Re5 {[%clk 00:54:25]} {[%emt
00:03:29]} Nd7 {[%clk 00:07:41]} {[%emt 00:02:26]} 40. Rxa5 {[%clk 00:54:21]}
{[%emt 00:00:34]} Ne5 {[%clk 00:07:39]} {[%emt 00:00:32]} 41. Rxe5 {[%clk
00:54:41]} {[%emt 00:00:10]} 1-0

[Event "ONJK U25"]
[Site "Enschede, Netherlands"]
[Date "2022.08.09"]
[Round "2.6"]
[White "Van Roon, Sjoerd"]
[Black "Van Randtwijk, Mick"]
[Result "1-0"]
[TimeControl "90min + 30sec/move"]
[WhiteElo "2310"]
[BlackElo "2057"]

1. e4 {[%clk 01:30:58]} {[%emt 00:00:01]} c5 {[%clk 01:30:50]} {[%emt
00:00:11]} 2. Nf3 {[%clk 01:31:24]} {[%emt 00:00:03]} d6 {[%clk 01:30:57]}
{[%emt 00:00:23]} 3. Bb5+ {[%clk 01:31:51]} {[%emt 00:00:03]} Nd7 {[%clk
01:30:31]} {[%emt 00:00:56]} 4. d4 {[%clk 01:32:13]} {[%emt 00:00:08]} cxd4
{[%clk 01:30:52]} {[%emt 00:00:09]} 5. Qxd4 {[%clk 01:32:40]} {[%emt 00:00:04]}
a6 {[%clk 01:29:38]} {[%emt 00:01:44]} 6. Bxd7+ {[%clk 01:32:52]} {[%emt
00:00:18]} Bxd7 {[%clk 01:29:27]} {[%emt 00:00:40]} 7. Nc3 {[%clk 01:33:17]}
{[%emt 00:00:05]} e5 {[%clk 01:15:18]} {[%emt 00:14:39]} 8. Qd3 {[%clk
01:33:31]} {[%emt 00:00:17]} Bc6 {[%clk 01:14:36]} {[%emt 00:01:11]} 9. a4
{[%clk 01:28:17]} {[%emt 00:05:44]} Be7 {[%clk 01:10:02]} {[%emt 00:05:04]} 10.
O-O {[%clk 01:24:35]} {[%emt 00:04:12]} Qd7 {[%clk 01:07:21]} {[%emt 00:03:11]}
11. Nd2 {[%clk 01:19:46]} {[%emt 00:05:19]} Rd8 {[%clk 01:01:54]} {[%emt
00:05:57]} 12. Nc4 {[%clk 01:17:41]} {[%emt 00:02:35]} Nf6 {[%clk 00:59:58]}
{[%emt 00:02:27]} 13. Bg5 {[%clk 01:11:14]} {[%emt 00:06:57]} O-O {[%clk
00:59:29]} {[%emt 00:00:59]} 14. Rfd1 {[%clk 01:03:13]} {[%emt 00:08:31]} Qe6
{[%clk 00:55:04]} {[%emt 00:04:55]} 15. Nb6 {[%clk 00:53:10]} {[%emt 00:10:33]}
Nxe4 {[%clk 00:45:08]} {[%emt 00:10:26]} 16. Nxe4 {[%clk 00:50:44]} {[%emt
00:02:56]} Bxe4 {[%clk 00:45:24]} {[%emt 00:00:13]} 17. Qxe4 {[%clk 00:51:10]}
{[%emt 00:00:05]} Bxg5 {[%clk 00:45:50]} {[%emt 00:00:03]} 18. Qxb7 {[%clk
00:51:10]} {[%emt 00:00:30]} a5 {[%clk 00:41:40]} {[%emt 00:04:40]} 19. Qd5
{[%clk 00:49:18]} {[%emt 00:02:22]} Qg6 {[%clk 00:38:29]} {[%emt 00:03:41]} 20.
Qxa5 {[%clk 00:40:35]} {[%emt 00:09:14]} Qxc2 {[%clk 00:38:52]} {[%emt
00:00:07]} 21. b4 {[%clk 00:32:43]} {[%emt 00:08:22]} Bd2 {[%clk 00:26:50]}
{[%emt 00:12:32]} 22. Qb5 {[%clk 00:32:29]} {[%emt 00:00:44]} Bc3 {[%clk
00:26:57]} {[%emt 00:00:23]} 23. Qc6 {[%clk 00:23:05]} {[%emt 00:09:55]} Qb2
{[%clk 00:25:13]} {[%emt 00:02:14]} 24. Rab1 {[%clk 00:20:31]} {[%emt
00:03:04]} Qa3 {[%clk 00:25:32]} {[%emt 00:00:11]} 25. Qc4 {[%clk 00:19:45]}
{[%emt 00:01:16]} Bd4 {[%clk 00:21:24]} {[%emt 00:04:38]} 26. Rd3 {[%clk
00:19:33]} {[%emt 00:00:42]} d5 {[%clk 00:21:50]} {[%emt 00:00:04]} 27. Qc2
{[%clk 00:19:54]} {[%emt 00:00:09]} Qxd3 {[%clk 00:21:57]} {[%emt 00:00:23]} 28.
Qxd3 {[%clk 00:20:20]} {[%emt 00:00:04]} Bxb6 {[%clk 00:22:23]} {[%emt
00:00:04]} 29. a5 {[%clk 00:19:43]} {[%emt 00:01:08]} Bc7 {[%clk 00:21:46]}
{[%emt 00:01:06]} 30. Qd2 {[%clk 00:19:48]} {[%emt 00:00:24]} Rd6 {[%clk
00:20:10]} {[%emt 00:02:05]} 31. b5 {[%clk 00:19:08]} {[%emt 00:01:11]} Ra8
{[%clk 00:20:29]} {[%emt 00:00:11]} 32. Qc3 {[%clk 00:15:27]} {[%emt 00:04:11]}
Bxa5 {[%clk 00:18:14]} {[%emt 00:02:46]} 33. Ra1 {[%clk 00:15:41]} {[%emt
00:00:16]} Bxc3 {[%clk 00:18:41]} {[%emt 00:00:03]} 34. Rxa8+ {[%clk 00:16:06]}
{[%emt 00:00:05]} Rd8 {[%clk 00:19:08]} {[%emt 00:00:02]} 35. Rxd8# {[%clk
00:15:07]} {[%emt 00:00:06]} 1-0